[Event "Titled Tuesday Blitz October 18 Late 2022"]
[White "Galchenko, Matvey"]
[Black "Kanakaris, Georgios"]
[WhiteFideId "24175480"]
[BlackFideId "4209460"]
[WhiteElo "2423"]
[BlackElo "2291"]
[Result "1-0"]
[Round "03"]
[TimeControl "180+1"]
[Date "2022.10.18"]
[WhiteClock "0:00:27"]
[BlackClock "0:00:10"]

1. f4 {[%clk 0:03:00]}  d5 {[%clk 0:02:59]} 2. Nf3 {[%clk 0:03:01]}  g6 {[%clk 0:02:59]} 3. g3 {[%clk 0:03:01]}  Bg7 {[%clk 0:03:00]} 4. Bg2 {[%clk 0:03:02]}  c5 {[%clk 0:03:00]} 5. O-O {[%clk 0:03:03]}  Nc6 {[%clk 0:03:01]} 6. d3 {[%clk 0:03:03]}  Nh6 {[%clk 0:03:00]} 7. e4 {[%clk 0:03:03]}  dxe4 {[%clk 0:03:01]} 8. dxe4 {[%clk 0:03:04]}  Qxd1 {[%clk 0:03:02]} 9. Rxd1 {[%clk 0:03:05]}  Bg4 {[%clk 0:03:02]} 10. c3 {[%clk 0:03:05]}  O-O {[%clk 0:02:55]} 11. Be3 {[%clk 0:03:04]}  b6 {[%clk 0:02:52]} 12. e5 {[%clk 0:03:04]}  Rad8 {[%clk 0:02:53]} 13. Nbd2 {[%clk 0:02:59]}  Rd3 {[%clk 0:02:38]} 14. Re1 {[%clk 0:02:51]}  Rfd8 {[%clk 0:02:30]} 15. h3 {[%clk 0:02:46]}  Be6 {[%clk 0:02:21]} 16. Ng5 {[%clk 0:02:40]}  Nf5 {[%clk 0:02:07]} 17. Nxe6 {[%clk 0:02:33]}  fxe6 {[%clk 0:02:06]} 18. Nf1 {[%clk 0:02:32]}  Na5 {[%clk 0:01:59]} 19. Be4 {[%clk 0:02:21]}  R3d7 {[%clk 0:01:57]} 20. b3 {[%clk 0:02:14]}  g5 {[%clk 0:01:51]} 21. Re2 {[%clk 0:01:17]}  Rd1 {[%clk 0:01:30]} 22. Rxd1 {[%clk 0:01:14]}  Rxd1 {[%clk 0:01:31]} 23. Bxf5 {[%clk 0:00:57]}  exf5 {[%clk 0:01:32]} 24. fxg5 {[%clk 0:00:57]}  Bxe5 {[%clk 0:01:30]} 25. Bxc5 {[%clk 0:00:57]}  Bxg3 {[%clk 0:01:24]} 26. Bxe7 {[%clk 0:00:57]}  Nc6 {[%clk 0:01:11]} 27. Bf6 {[%clk 0:00:55]}  Kf7 {[%clk 0:00:52]} 28. Kg2 {[%clk 0:00:55]}  Bf4 {[%clk 0:00:35]} 29. Rf2 {[%clk 0:00:54]}  Bc1 {[%clk 0:00:24]} 30. Rxf5 {[%clk 0:00:54]}  Ke6 {[%clk 0:00:21]} 31. Rf3 {[%clk 0:00:51]}  Ne5 {[%clk 0:00:19]} 32. Rf2 {[%clk 0:00:49]}  Nd3 {[%clk 0:00:18]} 33. Re2+ {[%clk 0:00:49]}  Kf5 {[%clk 0:00:19]} 34. Ng3+ {[%clk 0:00:46]}  Kg6 {[%clk 0:00:18]} 35. Re7 {[%clk 0:00:45]}  Bxg5 {[%clk 0:00:14]} 36. Bxg5 {[%clk 0:00:43]}  Kxg5 {[%clk 0:00:15]} 37. Rxa7 {[%clk 0:00:42]}  Rd2+ {[%clk 0:00:15]} 38. Kf3 {[%clk 0:00:41]}  Ne5+ {[%clk 0:00:15]} 39. Ke4 {[%clk 0:00:41]}  Ng6 {[%clk 0:00:13]} 40. a4 {[%clk 0:00:37]}  Rg2 {[%clk 0:00:12]} 41. Nf5 {[%clk 0:00:33]}  Re2+ {[%clk 0:00:12]} 42. Ne3 {[%clk 0:00:33]}  Nf4 {[%clk 0:00:11]} 43. Kf3 {[%clk 0:00:27]}  Re1 {[%clk 0:00:10]} 44. h4+ {[%clk 0:00:27]} 1-0


[Site "https://www.chess.com"]

[Event "Titled Tuesday Blitz October 18 Late 2022"]
[White "Garrido, Denis"]
[Black "Pavlidou, Ekaterini"]
[WhiteFideId "601217"]
[BlackFideId "4213262"]
[WhiteElo "2220"]
[BlackElo "2125"]
[Result "0-1"]
[Round "03"]
[TimeControl "180+1"]
[Date "2022.10.19"]
[WhiteClock "0:00:06"]
[BlackClock "0:01:55"]

1. c4 {[%clk 0:02:57]}  e5 {[%clk 0:02:59]} 2. Nc3 {[%clk 0:02:56]}  g6 {[%clk 0:03:00]} 3. Nf3 {[%clk 0:02:51]}  Bg7 {[%clk 0:03:00]} 4. d4 {[%clk 0:02:49]}  d6 {[%clk 0:02:59]} 5. dxe5 {[%clk 0:02:46]}  dxe5 {[%clk 0:02:59]} 6. Qxd8+ {[%clk 0:02:43]}  Kxd8 {[%clk 0:02:59]} 7. h4 {[%clk 0:02:12]}  h6 {[%clk 0:02:56]} 8. Be3 {[%clk 0:01:44]}  c6 {[%clk 0:02:56]} 9. O-O-O+ {[%clk 0:01:33]}  Kc7 {[%clk 0:02:56]} 10. Bc5 {[%clk 0:01:21]}  Nd7 {[%clk 0:02:45]} 11. Bd6+ {[%clk 0:01:21]}  Kb6 {[%clk 0:02:42]} 12. h5 {[%clk 0:01:08]}  a5 {[%clk 0:02:38]} 13. hxg6 {[%clk 0:01:07]}  fxg6 {[%clk 0:02:38]} 14. Nh4 {[%clk 0:00:49]}  g5 {[%clk 0:02:21]} 15. Nf5 {[%clk 0:00:45]}  Bf8 {[%clk 0:02:17]} 16. c5+ {[%clk 0:00:23]}  Nxc5 {[%clk 0:02:11]} 17. Bxf8 {[%clk 0:00:20]}  Bxf5 {[%clk 0:02:11]} 18. Bxc5+ {[%clk 0:00:17]}  Kxc5 {[%clk 0:02:11]} 19. e4 {[%clk 0:00:13]}  Be6 {[%clk 0:02:03]} 20. Na4+ {[%clk 0:00:11]}  Kb4 {[%clk 0:02:03]} 21. Nb6 {[%clk 0:00:06]}  Ra6 {[%clk 0:01:56]} 22. a3+ {[%clk 0:00:06]}  Kb3 {[%clk 0:01:55]} 0-1


[Site "https://www.chess.com"]

[Event "Titled Tuesday Blitz October 18 Late 2022"]
[White "Georgiadis, Ioannis"]
[Black "Zeynalli, Rashad"]
[WhiteFideId "4208900"]
[BlackFideId "13403320"]
[WhiteElo "2446"]
[BlackElo "2125"]
[Result "1-0"]
[Round "03"]
[TimeControl "180+1"]
[Date "2022.10.18"]
[WhiteClock "0:00:06"]
[BlackClock "0:00:02"]

1. Nf3 {[%clk 0:03:00]}  Nf6 {[%clk 0:02:59]} 2. d4 {[%clk 0:02:59]}  d5 {[%clk 0:02:59]} 3. c4 {[%clk 0:02:58]}  e6 {[%clk 0:02:59]} 4. g3 {[%clk 0:02:58]}  Be7 {[%clk 0:02:59]} 5. Bg2 {[%clk 0:02:58]}  O-O {[%clk 0:02:59]} 6. O-O {[%clk 0:02:59]}  dxc4 {[%clk 0:02:59]} 7. Qc2 {[%clk 0:02:59]}  b5 {[%clk 0:03:00]} 8. a4 {[%clk 0:02:58]}  b4 {[%clk 0:03:00]} 9. Qxc4 {[%clk 0:02:58]}  Ba6 {[%clk 0:03:00]} 10. Qc2 {[%clk 0:02:57]}  Nbd7 {[%clk 0:03:00]} 11. Rd1 {[%clk 0:02:44]}  c5 {[%clk 0:02:55]} 12. dxc5 {[%clk 0:02:44]}  Bxc5 {[%clk 0:02:53]} 13. Bg5 {[%clk 0:02:39]}  Rc8 {[%clk 0:02:49]} 14. Qd2 {[%clk 0:02:25]}  Bxf2+ {[%clk 0:02:38]} 15. Kxf2 {[%clk 0:02:18]}  Ne4+ {[%clk 0:02:38]} 16. Ke1 {[%clk 0:02:18]}  Nxd2 {[%clk 0:02:33]} 17. Bxd8 {[%clk 0:02:19]}  Nxf3+ {[%clk 0:02:32]} 18. Bxf3 {[%clk 0:02:13]}  Rfxd8 {[%clk 0:02:31]} 19. Nd2 {[%clk 0:02:08]}  Ne5 {[%clk 0:02:23]} 20. Rac1 {[%clk 0:02:07]}  Kf8 {[%clk 0:01:56]} 21. Nb3 {[%clk 0:01:59]}  Rxd1+ {[%clk 0:01:51]} 22. Kxd1 {[%clk 0:01:59]}  Nc4 {[%clk 0:01:48]} 23. Rb1 {[%clk 0:01:50]}  Ke7 {[%clk 0:01:33]} 24. Ke1 {[%clk 0:01:46]}  e5 {[%clk 0:01:18]} 25. Be4 {[%clk 0:01:41]}  Nd6 {[%clk 0:01:12]} 26. Bd5 {[%clk 0:01:32]}  Rc2 {[%clk 0:01:05]} 27. Nd2 {[%clk 0:01:28]}  f5 {[%clk 0:00:48]} 28. Bb3 {[%clk 0:01:26]}  Rc7 {[%clk 0:00:45]} 29. Nf3 {[%clk 0:01:25]}  Kf6 {[%clk 0:00:43]} 30. Rd1 {[%clk 0:01:24]}  Nc4 {[%clk 0:00:38]} 31. Bxc4 {[%clk 0:01:19]}  Bxc4 {[%clk 0:00:35]} 32. Rd6+ {[%clk 0:01:19]}  Be6 {[%clk 0:00:25]} 33. Ra6 {[%clk 0:01:16]}  g5 {[%clk 0:00:18]} 34. Nxg5 {[%clk 0:01:13]}  Kxg5 {[%clk 0:00:19]} 35. Rxe6 {[%clk 0:01:14]}  Rc2 {[%clk 0:00:19]} 36. Rxe5 {[%clk 0:01:11]}  Rxb2 {[%clk 0:00:19]} 37. Ra5 {[%clk 0:01:11]}  Ra2 {[%clk 0:00:19]} 38. Rxa7 {[%clk 0:01:11]}  b3 {[%clk 0:00:19]} 39. Rb7 {[%clk 0:01:11]}  b2 {[%clk 0:00:18]} 40. Kf2 {[%clk 0:01:11]}  Rxa4 {[%clk 0:00:17]} 41. Rxb2 {[%clk 0:01:11]}  h5 {[%clk 0:00:17]} 42. Rb8 {[%clk 0:01:07]}  f4 {[%clk 0:00:14]} 43. Rg8+ {[%clk 0:01:06]}  Kh6 {[%clk 0:00:13]} 44. Kf3 {[%clk 0:00:41]}  fxg3 {[%clk 0:00:12]} 45. hxg3 {[%clk 0:00:42]}  Ra3+ {[%clk 0:00:11]} 46. Kf4 {[%clk 0:00:40]}  Kh7 {[%clk 0:00:10]} 47. Rg5 {[%clk 0:00:38]}  Kh6 {[%clk 0:00:10]} 48. Rb5 {[%clk 0:00:36]}  Ra4+ {[%clk 0:00:08]} 49. e4 {[%clk 0:00:36]}  Kg6 {[%clk 0:00:07]} 50. Rb6+ {[%clk 0:00:36]}  Kf7 {[%clk 0:00:08]} 51. Rh6 {[%clk 0:00:29]}  Ra5 {[%clk 0:00:07]} 52. e5 {[%clk 0:00:28]}  Ra4+ {[%clk 0:00:07]} 53. Kf5 {[%clk 0:00:28]}  Rg4 {[%clk 0:00:07]} 54. Rh7+ {[%clk 0:00:26]}  Kg8 {[%clk 0:00:07]} 55. Rxh5 {[%clk 0:00:12]}  Rxg3 {[%clk 0:00:07]} 56. Kf6 {[%clk 0:00:11]}  Rf3+ {[%clk 0:00:04]} 57. Ke7 {[%clk 0:00:11]}  Ra3 {[%clk 0:00:03]} 58. Rg5+ {[%clk 0:00:09]}  Kh7 {[%clk 0:00:02]} 59. e6 {[%clk 0:00:08]}  Kh6 {[%clk 0:00:03]} 60. Rg1 {[%clk 0:00:08]}  Ra7+ {[%clk 0:00:02]} 61. Kf8 {[%clk 0:00:07]}  Ra8+ {[%clk 0:00:02]} 62. Kf7 {[%clk 0:00:07]}  Ra2 {[%clk 0:00:02]} 63. Rf1 {[%clk 0:00:06]} 1-0


[Site "https://www.chess.com"]

[Event "Titled Tuesday Blitz October 18 Late 2022"]
[White "Girel, Joseph"]
[Black "Andreikin, Dmitry"]
[WhiteFideId "36033561"]
[BlackFideId "4158814"]
[WhiteElo "2281"]
[BlackElo "2736"]
[Result "0-1"]
[Round "03"]
[TimeControl "180+1"]
[Date "2022.10.18"]
[WhiteClock "0:00:03"]
[BlackClock "0:00:08"]

1. d4 {[%clk 0:03:00]}  Nf6 {[%clk 0:02:59]} 2. c4 {[%clk 0:03:00]}  e6 {[%clk 0:02:59]} 3. Nf3 {[%clk 0:03:01]}  d5 {[%clk 0:02:59]} 4. Nc3 {[%clk 0:03:01]}  Nbd7 {[%clk 0:02:58]} 5. Bf4 {[%clk 0:02:59]}  dxc4 {[%clk 0:02:56]} 6. e3 {[%clk 0:02:59]}  a6 {[%clk 0:02:56]} 7. Bxc4 {[%clk 0:02:58]}  b5 {[%clk 0:02:56]} 8. Bd3 {[%clk 0:02:56]}  Bb7 {[%clk 0:02:56]} 9. O-O {[%clk 0:02:55]}  c5 {[%clk 0:02:56]} 10. dxc5 {[%clk 0:02:50]}  Nxc5 {[%clk 0:02:54]} 11. Be2 {[%clk 0:02:48]}  Be7 {[%clk 0:02:53]} 12. Nd4 {[%clk 0:02:45]}  b4 {[%clk 0:02:34]} 13. Na4 {[%clk 0:02:41]}  Nce4 {[%clk 0:02:30]} 14. Rc1 {[%clk 0:02:36]}  O-O {[%clk 0:02:30]} 15. Bc7 {[%clk 0:02:35]}  Qd5 {[%clk 0:02:20]} 16. Nb6 {[%clk 0:02:32]}  Qg5 {[%clk 0:02:18]} 17. Nf3 {[%clk 0:02:30]}  Qg6 {[%clk 0:02:15]} 18. Nxa8 {[%clk 0:02:29]}  Bxa8 {[%clk 0:02:16]} 19. Qa4 {[%clk 0:02:27]}  Nd2 {[%clk 0:02:12]} 20. Nh4 {[%clk 0:01:49]}  Qg5 {[%clk 0:01:49]} 21. Rfd1 {[%clk 0:01:47]}  Qxh4 {[%clk 0:01:49]} 22. Rxd2 {[%clk 0:01:45]}  Ne4 {[%clk 0:01:49]} 23. Bg3 {[%clk 0:01:43]}  Qf6 {[%clk 0:01:49]} 24. Rdc2 {[%clk 0:01:39]}  h5 {[%clk 0:01:34]} 25. Bxh5 {[%clk 0:01:25]}  Nxg3 {[%clk 0:01:30]} 26. hxg3 {[%clk 0:01:24]}  Be4 {[%clk 0:01:31]} 27. Rd2 {[%clk 0:01:13]}  g6 {[%clk 0:01:31]} 28. Be2 {[%clk 0:01:11]}  Kg7 {[%clk 0:01:31]} 29. Rd4 {[%clk 0:00:53]}  Qe5 {[%clk 0:01:22]} 30. Bf3 {[%clk 0:00:47]}  Bxf3 {[%clk 0:01:18]} 31. gxf3 {[%clk 0:00:48]}  Rh8 {[%clk 0:01:17]} 32. Qc6 {[%clk 0:00:44]}  Qh5 {[%clk 0:01:11]} 33. f4 {[%clk 0:00:44]}  Bf6 {[%clk 0:01:11]} 34. Rd7 {[%clk 0:00:38]}  Bxb2 {[%clk 0:01:05]} 35. Rcd1 {[%clk 0:00:38]}  Bf6 {[%clk 0:00:58]} 36. Kf1 {[%clk 0:00:37]}  a5 {[%clk 0:00:55]} 37. Ke1 {[%clk 0:00:26]}  Bc3+ {[%clk 0:00:51]} 38. Kf1 {[%clk 0:00:26]}  Qg4 {[%clk 0:00:42]} 39. Kg2 {[%clk 0:00:12]}  Qh3+ {[%clk 0:00:38]} 40. Kg1 {[%clk 0:00:12]}  a4 {[%clk 0:00:35]} 41. Qb7 {[%clk 0:00:12]}  Qf5 {[%clk 0:00:28]} 42. Rc7 {[%clk 0:00:10]}  g5 {[%clk 0:00:22]} 43. Qf3 {[%clk 0:00:09]}  g4 {[%clk 0:00:20]} 44. Qg2 {[%clk 0:00:09]}  a3 {[%clk 0:00:19]} 45. e4 {[%clk 0:00:08]}  Qa5 {[%clk 0:00:18]} 46. Rdd7 {[%clk 0:00:04]}  b3 {[%clk 0:00:18]} 47. Rxf7+ {[%clk 0:00:03]}  Kg6 {[%clk 0:00:18]} 48. e5 {[%clk 0:00:01]}  Qd5 {[%clk 0:00:09]} 49. Rf6+ {[%clk 0:00:02]}  Kh5 {[%clk 0:00:09]} 50. Qxd5 {[%clk 0:00:03]}  exd5 {[%clk 0:00:09]} 51. axb3 {[%clk 0:00:04]}  a2 {[%clk 0:00:09]} 52. Ra6 {[%clk 0:00:04]}  a1=Q+ {[%clk 0:00:08]} 53. Rxa1 {[%clk 0:00:04]}  Bxa1 {[%clk 0:00:09]} 54. Rd7 {[%clk 0:00:05]}  d4 {[%clk 0:00:08]} 55. f5 {[%clk 0:00:05]}  Kg5 {[%clk 0:00:08]} 56. f6 {[%clk 0:00:05]}  Kf5 {[%clk 0:00:08]} 57. f7 {[%clk 0:00:04]}  Ke6 {[%clk 0:00:08]} 58. Rxd4 {[%clk 0:00:03]}  Bxd4 {[%clk 0:00:08]} 0-1


[Site "https://www.chess.com"]

[Event "Titled Tuesday Blitz October 18 Late 2022"]
[White "Girsh, Daniel"]
[Black "Zhigalko, Sergei"]
[WhiteFideId "30949190"]
[BlackFideId "13502956"]
[WhiteElo "2504"]
[BlackElo "2850"]
[Result "0-1"]
[Round "03"]
[TimeControl "180+1"]
[Date "2022.10.19"]
[WhiteClock "0:00:01"]
[BlackClock "0:00:05"]

1. e4 {[%clk 0:03:00]}  c5 {[%clk 0:02:59]} 2. Nf3 {[%clk 0:03:01]}  Nc6 {[%clk 0:02:59]} 3. d4 {[%clk 0:03:01]}  cxd4 {[%clk 0:02:59]} 4. Nxd4 {[%clk 0:03:02]}  Nf6 {[%clk 0:03:00]} 5. Nc3 {[%clk 0:03:02]}  e5 {[%clk 0:03:01]} 6. Ndb5 {[%clk 0:03:03]}  d6 {[%clk 0:03:01]} 7. Bg5 {[%clk 0:03:01]}  a6 {[%clk 0:03:01]} 8. Na3 {[%clk 0:03:02]}  b5 {[%clk 0:03:02]} 9. Nd5 {[%clk 0:03:02]}  Be7 {[%clk 0:03:02]} 10. Bxf6 {[%clk 0:03:02]}  Bxf6 {[%clk 0:03:03]} 11. c3 {[%clk 0:03:01]}  Bg5 {[%clk 0:03:03]} 12. Nc2 {[%clk 0:03:02]}  Ne7 {[%clk 0:03:04]} 13. a4 {[%clk 0:03:02]}  bxa4 {[%clk 0:03:04]} 14. Rxa4 {[%clk 0:03:01]}  O-O {[%clk 0:03:04]} 15. Be2 {[%clk 0:02:59]}  a5 {[%clk 0:03:03]} 16. O-O {[%clk 0:02:59]}  Bd7 {[%clk 0:03:03]} 17. Ra1 {[%clk 0:02:59]}  Nxd5 {[%clk 0:02:57]} 18. Qxd5 {[%clk 0:02:58]}  Be6 {[%clk 0:02:58]} 19. Qd3 {[%clk 0:02:57]}  Qb6 {[%clk 0:02:58]} 20. b4 {[%clk 0:02:53]}  axb4 {[%clk 0:02:53]} 21. cxb4 {[%clk 0:02:54]}  g6 {[%clk 0:02:37]} 22. Qb5 {[%clk 0:02:53]}  Qc7 {[%clk 0:02:34]} 23. Bd3 {[%clk 0:02:20]}  Qc3 {[%clk 0:01:58]} 24. Rxa8 {[%clk 0:02:15]}  Rxa8 {[%clk 0:01:57]} 25. Qb7 {[%clk 0:01:56]}  Rc8 {[%clk 0:01:21]} 26. Qa6 {[%clk 0:01:43]}  Qd2 {[%clk 0:00:59]} 27. Ne1 {[%clk 0:00:48]}  Qxb4 {[%clk 0:00:44]} 28. Nf3 {[%clk 0:00:48]}  Be7 {[%clk 0:00:39]} 29. h3 {[%clk 0:00:48]}  Rc3 {[%clk 0:00:35]} 30. Rb1 {[%clk 0:00:46]}  Rb3 {[%clk 0:00:25]} 31. Rc1 {[%clk 0:00:42]}  Kg7 {[%clk 0:00:17]} 32. Rc7 {[%clk 0:00:39]}  Bd8 {[%clk 0:00:17]} 33. Ra7 {[%clk 0:00:35]}  Bb6 {[%clk 0:00:17]} 34. Ng5 {[%clk 0:00:29]}  Bxa7 {[%clk 0:00:09]} 35. Nxe6+ {[%clk 0:00:25]}  fxe6 {[%clk 0:00:09]} 36. Qxa7+ {[%clk 0:00:26]}  Qb7 {[%clk 0:00:09]} 37. Qe3 {[%clk 0:00:25]}  Qc7 {[%clk 0:00:04]} 38. Qe2 {[%clk 0:00:20]}  Qc3 {[%clk 0:00:04]} 39. Ba6 {[%clk 0:00:17]}  Rb1+ {[%clk 0:00:03]} 40. Kh2 {[%clk 0:00:17]}  Rb6 {[%clk 0:00:02]} 41. Qa2 {[%clk 0:00:12]}  Kf6 {[%clk 0:00:02]} 42. Qa4 {[%clk 0:00:11]}  Ke7 {[%clk 0:00:01]} 43. Be2 {[%clk 0:00:11]}  Qc7 {[%clk 0:00:02]} 44. Bg4 {[%clk 0:00:10]}  Rb8 {[%clk 0:00:02]} 45. Qa2 {[%clk 0:00:10]}  Qd7 {[%clk 0:00:02]} 46. Qa5 {[%clk 0:00:09]}  Rd8 {[%clk 0:00:02]} 47. Qb6 {[%clk 0:00:09]}  Kf7 {[%clk 0:00:03]} 48. Qe3 {[%clk 0:00:09]}  Kg7 {[%clk 0:00:03]} 49. Qg5 {[%clk 0:00:09]}  Rf8 {[%clk 0:00:03]} 50. f3 {[%clk 0:00:08]}  Qf7 {[%clk 0:00:03]} 51. g3 {[%clk 0:00:06]}  Qf6 {[%clk 0:00:03]} 52. Qd2 {[%clk 0:00:06]}  h5 {[%clk 0:00:03]} 53. Qxd6 {[%clk 0:00:06]}  hxg4 {[%clk 0:00:03]} 54. hxg4 {[%clk 0:00:05]}  Rf7 {[%clk 0:00:03]} 55. f4 {[%clk 0:00:03]}  exf4 {[%clk 0:00:03]} 56. e5 {[%clk 0:00:03]}  fxg3+ {[%clk 0:00:04]} 57. Kh3 {[%clk 0:00:02]}  Qf1+ {[%clk 0:00:04]} 58. Kxg3 {[%clk 0:00:03]}  Qf2+ {[%clk 0:00:05]} 59. Kh3 {[%clk 0:00:01]}  Rf3# {[%clk 0:00:05]} 0-1


[Site "https://www.chess.com"]

[Event "Titled Tuesday Blitz October 18 Late 2022"]
[White "Graif, William"]
[Black "Hamidi, Amir Mohammad"]
[WhiteFideId "2609835"]
[BlackFideId "12563285"]
[WhiteElo "2498"]
[BlackElo "2826"]
[Result "0-1"]
[Round "03"]
[TimeControl "180+1"]
[Date "2022.10.19"]
[WhiteClock "0:00:12"]
[BlackClock "0:02:21"]

1. e4 {[%clk 0:03:00]}  c5 {[%clk 0:02:58]} 2. a3 {[%clk 0:02:57]}  e5 {[%clk 0:02:56]} 3. b4 {[%clk 0:02:49]}  cxb4 {[%clk 0:02:54]} 4. axb4 {[%clk 0:02:50]}  Bxb4 {[%clk 0:02:54]} 5. c3 {[%clk 0:02:42]}  Be7 {[%clk 0:02:54]} 6. d4 {[%clk 0:02:41]}  Nf6 {[%clk 0:02:53]} 7. dxe5 {[%clk 0:02:10]}  Nxe4 {[%clk 0:02:52]} 8. Qg4 {[%clk 0:02:09]}  Ng5 {[%clk 0:02:48]} 9. Bxg5 {[%clk 0:01:57]}  Bxg5 {[%clk 0:02:49]} 10. Nf3 {[%clk 0:01:54]}  Bh6 {[%clk 0:02:49]} 11. Qe4 {[%clk 0:00:47]}  O-O {[%clk 0:02:39]} 12. Bd3 {[%clk 0:00:47]}  g6 {[%clk 0:02:39]} 13. O-O {[%clk 0:00:38]}  d5 {[%clk 0:02:39]} 14. Qe2 {[%clk 0:00:20]}  Nc6 {[%clk 0:02:37]} 15. h3 {[%clk 0:00:19]}  Re8 {[%clk 0:02:35]} 16. Na3 {[%clk 0:00:17]}  Bg7 {[%clk 0:02:35]} 17. Bb5 {[%clk 0:00:16]}  Bf5 {[%clk 0:02:29]} 18. Rfe1 {[%clk 0:00:15]}  Be4 {[%clk 0:02:27]} 19. Rad1 {[%clk 0:00:14]}  Qa5 {[%clk 0:02:25]} 20. Nc2 {[%clk 0:00:11]}  Bxc2 {[%clk 0:02:22]} 21. Bxc6 {[%clk 0:00:12]}  Bxd1 {[%clk 0:02:22]} 22. Rxd1 {[%clk 0:00:12]}  bxc6 {[%clk 0:02:21]} 0-1


[Site "https://www.chess.com"]

[Event "Titled Tuesday Blitz October 18 Late 2022"]
[White "Hajiyev, Kanan"]
[Black "Boyer, Mahel"]
[WhiteFideId "13404148"]
[BlackFideId "45102422"]
[WhiteElo "2490"]
[BlackElo "2765"]
[Result "0-1"]
[Round "03"]
[TimeControl "180+1"]
[Date "2022.10.19"]
[WhiteClock "0:00:46"]
[BlackClock "0:00:16"]

1. d4 {[%clk 0:02:57]}  d5 {[%clk 0:02:06]} 2. c4 {[%clk 0:02:55]}  c6 {[%clk 0:02:07]} 3. cxd5 {[%clk 0:02:56]}  e6 {[%clk 0:02:07]} 4. Nc3 {[%clk 0:02:57]}  exd5 {[%clk 0:02:07]} 5. Nf3 {[%clk 0:02:57]}  Bf5 {[%clk 0:02:03]} 6. Bg5 {[%clk 0:02:56]}  Qb6 {[%clk 0:01:55]} 7. Qc1 {[%clk 0:02:51]}  Nd7 {[%clk 0:01:48]} 8. e3 {[%clk 0:02:50]}  Ngf6 {[%clk 0:01:42]} 9. Be2 {[%clk 0:02:44]}  Bd6 {[%clk 0:01:41]} 10. O-O {[%clk 0:02:43]}  O-O {[%clk 0:01:39]} 11. Nh4 {[%clk 0:02:42]}  Bg4 {[%clk 0:01:31]} 12. Bd3 {[%clk 0:02:25]}  h6 {[%clk 0:01:29]} 13. Bxf6 {[%clk 0:02:23]}  Nxf6 {[%clk 0:01:29]} 14. Nf5 {[%clk 0:02:24]}  Bxf5 {[%clk 0:01:09]} 15. Bxf5 {[%clk 0:02:23]}  g6 {[%clk 0:01:03]} 16. Bd3 {[%clk 0:02:22]}  Kg7 {[%clk 0:00:58]} 17. Rb1 {[%clk 0:02:21]}  Rfe8 {[%clk 0:00:53]} 18. Qc2 {[%clk 0:02:16]}  h5 {[%clk 0:00:24]} 19. b4 {[%clk 0:02:14]}  a6 {[%clk 0:00:24]} 20. a4 {[%clk 0:02:13]}  Rac8 {[%clk 0:00:23]} 21. h3 {[%clk 0:02:04]}  Qd8 {[%clk 0:00:19]} 22. Rfc1 {[%clk 0:02:01]}  b5 {[%clk 0:00:18]} 23. Qb2 {[%clk 0:01:57]}  Bb8 {[%clk 0:00:18]} 24. Ne2 {[%clk 0:01:53]}  Qd6 {[%clk 0:00:17]} 25. g3 {[%clk 0:01:53]}  h4 {[%clk 0:00:17]} 26. Kg2 {[%clk 0:01:48]}  hxg3 {[%clk 0:00:16]} 27. Nxg3 {[%clk 0:01:45]}  Rxe3 {[%clk 0:00:16]} 28. Bf1 {[%clk 0:01:12]}  Rxg3+ {[%clk 0:00:14]} 29. fxg3 {[%clk 0:01:12]}  Qxg3+ {[%clk 0:00:15]} 30. Kh1 {[%clk 0:01:12]}  Ne4 {[%clk 0:00:16]} 31. Rc2 {[%clk 0:01:09]}  Rh8 {[%clk 0:00:16]} 32. axb5 {[%clk 0:01:05]}  Bf4 {[%clk 0:00:15]} 33. bxc6 {[%clk 0:00:55]}  Be3 {[%clk 0:00:15]} 34. Bg2 {[%clk 0:00:47]}  Rxh3+ {[%clk 0:00:15]} 35. Bxh3 {[%clk 0:00:47]}  Qxh3+ {[%clk 0:00:15]} 36. Rh2 {[%clk 0:00:46]}  Ng3# {[%clk 0:00:16]} 0-1


[Site "https://www.chess.com"]